bitfinex/quotes_SOLUSD_20260115
["timestamp","ask_amount","ask_price","bid_price","bid_amount"]
[1768484101830,14.69984132,144.57,144.53,6.16709788]
[1768484102221,2.07984132,144.56,144.53,4.02174331]
[1768484102417,2.07984132,144.56,144.52,2.14535457]
[1768484102418,2.07984132,144.56,144.52,9.0646077]
[1768484102645,2.07984132,144.56,144.53,4.02174331]
[1768484102815,21.61714013,144.57,144.54,4.02174331]
[1768484103217,21.61714013,144.57,144.53,2.14535457]
[1768484103442,21.61714013,144.57,144.53,4.02174331]
[1768484104238,21.61714013,144.57,144.52,9.0646077]
[1768484104239,14.69984132,144.57,144.52,9.0646077]
[1768484104441,14.69984132,144.57,144.53,4.02174331]
[1768484104622,2.07984132,144.57,144.54,4.02174331]
[1768484105153,14.69984132,144.57,144.54,4.02174331]
[1768484105522,2.07984132,144.56,144.54,4.02174331]
[1768484105717,2.07984132,144.56,144.53,6.91882001]
[1768484105926,2.07984132,144.56,144.52,6.91927771]
[1768484106127,2.07984132,144.54,144.49,6.92053687]
[1768484106343,2.07984132,144.54,144.49,10.94228018]
[1768484106344,2.07984132,144.52,144.49,10.94228018]
[1768484107145,2.07984132,144.52,144.5,4.02174331]
[1768484107321,12.62,144.53,144.5,4.02174331]
[1768484107717,12.62,144.53,144.51,4.02174331]
[1768484107923,12.62,144.53,144.49,9.03758512]
[1768484108128,10.50295175,144.53,144.49,24.22277231]
[1768484108321,10.50295175,144.53,144.5,4.02174331]
[1768484109629,10.50295175,144.53,144.51,4.02174331]
[1768484110136,2.07984132,144.54,144.51,4.02174331]
[1768484110522,2.07984132,144.54,144.52,4.02174331]
[1768484110924,2.07984132,144.54,144.53,4.02174331]
[1768484111124,2.07984132,144.55,144.53,4.02174331]
[1768484111332,8.99711947,144.57,144.53,4.02174331]
[1768484111542,12.62,144.56,144.54,4.02174331]
[1768484111747,14.69984132,144.56,144.54,4.02174331]
[1768484113546,2.07984132,144.56,144.54,10.94020033]
[1768484113743,14.69984132,144.58,144.55,4.02174331]
[1768484114038,2.07984132,144.57,144.55,4.02174331]
[1768484114441,2.07984132,144.59,144.56,4.02174331]
[1768484114617,2.07984132,144.6,144.58,4.02174331]
[1768484115430,2.07984132,144.6,144.58,2.56969539]
[1768484115631,2.07984132,144.61,144.58,2.56969539]
[1768484115928,2.07984132,144.61,144.57,2.56969539]
[1768484116126,2.56969539,144.6,144.54,6.91849601]
[1768484116325,2.07984132,144.58,144.53,17.2968121]
[1768484116533,2.07984132,144.58,144.55,2.56969539]
[1768484116922,2.07984132,144.58,144.56,2.56969539]
[1768484118961,2.07984132,144.58,144.52,6.91945751]
[1768484119252,2.07984132,144.57,144.54,2.56969539]
[1768484119937,2.07984132,144.57,144.52,24.21810129]
[1768484120153,2.07984132,144.57,144.54,2.56969539]
[1768484120649,2.07984132,144.57,144.53,9.4883809]
[1768484121037,1.91417436,144.56,144.5,17.30039788]
[1768484121352,1.91417436,144.56,144.51,9.4892509]
[1768484121737,1.91417436,144.55,144.51,9.4892509]
[1768484121942,1.91417436,144.52,144.45,6.92281066]
[1768484122249,1.85417433,144.51,144.47,2.56969539]
[1768484122930,6.9200423,144.51,144.44,17.30763958]
[1768484123130,9.48933593,144.52,144.47,6.92180639]
[1768484123330,13.4851094,144.52,144.47,13.48727525]
[1768484123550,6.91964054,144.52,144.47,13.48727525]
[1768484123727,12.62,144.52,144.47,13.48727525]
[1768484124130,1.98906268,144.51,144.47,13.48727525]
[1768484128453,1.98906268,144.51,144.46,6.70763043]
[1768484128830,1.98906268,144.51,144.47,6.56546886]
[1768484129442,1.92906268,144.51,144.46,0.14216157]
[1768484129652,1.92906268,144.51,144.47,6.56546886]
[1768484130564,1.92906268,144.51,144.47,13.48687695]
[1768484130761,1.92906268,144.51,144.47,6.92140809]
[1768484131059,1.92906268,144.51,144.48,6.56546886]
[1768484131261,1.92906268,144.51,144.47,13.48687695]
[1768484131734,1.92906268,144.51,144.47,6.92140809]
[1768484132048,1.92906268,144.51,144.47,13.48687695]
[1768484132635,1.92906268,144.51,144.47,6.92140809]
[1768484132834,1.92906268,144.51,144.47,13.48687695]
[1768484133142,1.92906268,144.51,144.47,6.92140809]
[1768484134543,1.86906268,144.51,144.47,6.92140809]
[1768484135374,13.48547614,144.51,144.46,6.70763043]
[1768484135654,13.48547614,144.51,144.45,6.92264621]
[1768484135655,6.56546886,144.5,144.45,6.92264621]
[1768484135858,24.21984812,144.51,144.46,6.92228327]
[1768484136061,30.78531698,144.51,144.46,6.92228327]
[1768484136449,1.98906268,144.5,144.46,6.92228327]
[1768484138260,14.60906268,144.51,144.47,6.56546886]
[1768484139070,14.60906268,144.51,144.47,13.48694691]
[1768484139450,14.60906268,144.51,144.47,6.92147805]
[1768484139671,1.98906268,144.51,144.47,13.48694691]
[1768484140047,1.98906268,144.51,144.47,6.92147805]
[1768484140247,6.56546886,144.49,144.43,17.50890265]
[1768484140548,1.98906268,144.48,144.44,6.92284696]
[1768484142248,14.60906268,144.49,144.45,6.56546886]
[1768484142572,1.92906268,144.49,144.45,6.56546886]
[1768484142949,12.62,144.51,144.46,6.56546886]
[1768484143154,12.62,144.51,144.46,6.92233144]
[1768484143362,12.62,144.51,144.46,13.4878003]
[1768484143967,19.18546886,144.51,144.46,6.92233144]
[1768484144678,1.98906268,144.5,144.46,6.92233144]
[1768484145374,1.98906268,144.5,144.46,9.49611582]
[1768484145580,1.98906268,144.51,144.46,26.80194442]
[1768484147254,1.98906268,144.52,144.48,6.9213732]
[1768484147472,4.56284706,144.51,144.47,6.92164652]
[1768484147668,1.98906268,144.51,144.47,6.92164652]
[1768484147849,4.56284706,144.51,144.47,6.92164652]
[1768484148054,1.98906268,144.51,144.47,6.92164652]
[1768484148274,4.56284706,144.51,144.47,6.92164652]
[1768484148880,1.98906268,144.5,144.46,6.92233144]
[1768484149169,1.86906261,144.5,144.46,6.92233144]
[1768484149981,9.49343873,144.52,144.46,9.49611582]
[1768484150962,17.29683729,144.54,144.46,26.80194442]
[1768484151158,1.88613714,144.52,144.47,2.57378438]
[1768484152281,1.88613714,144.52,144.47,2.71594595]
[1768484153078,1.88613714,144.52,144.48,6.9213732]
[1768484153590,1.82613714,144.52,144.48,6.9213732]
[1768484155776,1.7661371,144.52,144.48,6.9213732]
[1768484156787,1.7661371,144.52,144.48,6.96120638]
[1768484156973,1.7661371,144.52,144.48,9.53499076]
[1768484158065,1.70613709,144.52,144.49,2.57378438]
[1768484158265,7.34763121,144.56,144.5,2.66771879]
[1768484158460,12.62,144.55,144.5,2.66771879]
[1768484158667,12.62,144.55,144.5,2.66188777]
[1768484158889,12.62,144.55,144.51,6.91993633]
[1768484160215,14.50613714,144.55,144.51,6.91993633]
[1768484160393,2.31613714,144.56,144.51,9.57600563]
[1768484160563,2.31613714,144.56,144.52,2.57378438]
[1768484160764,0.43,144.56,144.52,2.65031766]
[1768484160974,0.43,144.56,144.53,2.65031766]
[1768484161272,1.88613714,144.57,144.53,2.65031766]
[1768484161675,22.11015334,144.59,144.53,2.65031766]
[1768484161676,1.88613714,144.58,144.54,2.57378438]
[1768484162598,1.88613714,144.58,144.54,9.49198212]
[1768484162804,1.88613714,144.58,144.54,6.91819774]
[1768484163182,1.88613714,144.57,144.53,6.91882436]
[1768484163509,1.88613714,144.56,144.52,6.91927614]
[1768484164707,1.88613714,144.56,144.51,2.71594595]
[1768484165710,1.88613714,144.55,144.51,2.57378438]
[1768484166504,1.88613714,144.55,144.52,6.91945751]
[1768484167076,1.88613714,144.55,144.52,9.49324189]
[1768484171684,1.88613714,144.55,144.52,6.91945751]
[1768484172083,1.88613714,144.55,144.52,9.49324189]
[1768484173190,1.88613714,144.56,144.52,9.49324189]
[1768484175492,21.42292353,144.58,144.53,2.57378438]
[1768484175697,1.88613714,144.57,144.53,2.57378438]
[1768484177275,1.88613714,144.57,144.53,10.93645645]
[1768484177690,12.62,144.58,144.53,10.93645645]
[1768484177892,1.88613714,144.59,144.54,4.01762361]
[1768484178406,1.88613714,144.59,144.54,4.15978518]
[1768484178804,1.88613714,144.59,144.55,4.01762361]
[1768484178978,1.88613714,144.59,144.54,4.15978518]
[1768484179308,1.88613714,144.59,144.55,6.91802144]
[1768484179510,1.88613714,144.59,144.55,10.93564505]
[1768484181387,1.88613714,144.59,144.53,17.29744689]
[1768484181587,1.88613714,144.59,144.54,4.01762361]
[1768484183908,1.88613714,144.59,144.55,4.01762361]
[1768484184486,1.88613714,144.59,144.55,10.93534905]
[1768484185791,1.8294821,144.58,144.54,10.93600092]
[1768484186688,1.8294821,144.58,144.55,6.91791178]
[1768484187488,6.91611354,144.59,144.55,10.93553539]
[1768484187489,1.8294821,144.59,144.55,10.93553539]
[1768484188013,1.8294821,144.59,144.56,4.01762361]
[1768484188193,1.8294821,144.59,144.55,10.93553539]
[1768484188520,1.8294821,144.59,144.55,6.91791178]
[1768484188721,1.8294821,144.59,144.55,10.93553539]
[1768484189022,1.8294821,144.58,144.54,6.91831208]
[1768484189217,5.84710571,144.58,144.51,78.94130787]
[1768484189394,1.8294821,144.56,144.52,6.91919026]
[1768484189590,1.8294821,144.56,144.53,6.91876301]
[1768484189803,1.8294821,144.56,144.53,10.93638662]
[1768484190810,1.8294821,144.56,144.52,10.93694142]
[1768484191011,1.8294821,144.55,144.52,6.91931781]
[1768484191202,1.8294821,144.55,144.52,10.93694142]
[1768484191391,1.8294821,144.55,144.53,4.01762361]
[1768484191592,1.8294821,144.55,144.52,10.93694142]
[1768484192026,1.8294821,144.55,144.52,6.91931781]
[1768484192202,1.8294821,144.55,144.52,10.93694142]
[1768484195595,1.8294821,144.56,144.53,4.01762361]
[1768484196513,1.8294821,144.56,144.54,4.01762361]
[1768484197096,1.8294821,144.56,144.53,4.01762361]
[1768484197623,1.8294821,144.56,144.53,10.93653474]
[1768484198317,1.8294821,144.56,144.53,6.91891113]
[1768484199130,1.8294821,144.56,144.53,10.93653474]
[1768484199304,1.7694821,144.56,144.53,10.93653474]
[1768484199998,1.7694821,144.56,144.51,24.21921468]
[1768484200200,1.7694821,144.56,144.53,4.01762361]
[1768484200402,1.7694821,144.56,144.52,4.01762361]
[1768484202002,1.7694821,144.56,144.53,4.01762361]
[1768484202810,1.70948205,144.56,144.53,4.01762361]
[1768484203009,1.59947529,144.56,144.53,4.01762361]
[1768484204100,1.59947529,144.56,144.53,10.93633001]
[1768484204306,6.91643139,144.59,144.54,4.01762361]
[1768484204506,19.53643139,144.59,144.54,4.01762361]
[1768484204705,12.62,144.59,144.54,4.01762361]
[1768484204920,1.8294821,144.58,144.54,4.01762361]
[1768484205731,1.8294821,144.58,144.53,4.11063493]
[1768484207535,1.8294821,144.57,144.53,0.09301132]
[1768484207831,1.8294821,144.56,144.51,28.23740078]
[1768484208030,1.8294821,144.56,144.51,28.31644213]
[1768484208217,1.8294821,144.56,144.53,4.01762361]
[1768484208532,1.8294821,144.56,144.52,4.01762361]
[1768484208913,1.8294821,144.56,144.53,0.07592213]
[1768484209112,1.8294821,144.58,144.53,4.09354574]
[1768484209423,1.8294821,144.57,144.52,4.23570731]
[1768484209936,1.8294821,144.57,144.53,6.91897875]
[1768484210136,1.8294821,144.57,144.53,24.21642564]
[1768484210307,1.8294821,144.57,144.53,28.30688799]
[1768484211235,1.8294821,144.57,144.54,4.01762361]
[1768484211437,1.8294821,144.57,144.55,6.91802144]
[1768484214829,1.8294821,144.57,144.54,6.91850006]
[1768484216414,1.8294821,144.57,144.53,28.29490455]
[1768484217834,1.8294821,144.57,144.53,24.27728094]
[1768484218046,1.8294821,144.57,144.53,28.29490455]
[1768484218237,1.8294821,144.57,144.53,28.23404925]
[1768484220255,1.8294821,144.57,144.53,28.27522092]
[1768484221753,1.8294821,144.57,144.53,10.93660236]
[1768484228040,1.8294821,144.57,144.54,4.03816503]
[1768484228444,23.55297315,144.61,144.55,1.72857044]
[1768484228743,23.55297315,144.61,144.55,5.74619405]
[1768484229547,19.53534954,144.61,144.55,5.74619405]
[1768484229745,23.55297315,144.61,144.55,1.72857044]
[1768484229947,23.55297315,144.61,144.56,6.91754288]
[1768484230446,1.80397351,144.6,144.56,6.91754288]
[1768484232633,1.80397351,144.61,144.57,1.72857044]
[1768484233440,1.80397351,144.61,144.58,1.72857044]
[1768484233755,1.80397351,144.61,144.57,5.74619405]
[1768484234148,1.80397351,144.61,144.57,12.66294073]
[1768484237156,1.80397351,144.61,144.57,8.64531712]
[1768484238453,8.71913197,144.61,144.57,8.64531712]
[1768484238654,1.80397351,144.57,144.54,6.91828562]
[1768484238844,0.33024969,144.57,144.54,8.64685606]
[1768484239555,2.57147125,144.56,144.53,6.91894853]
[1768484239728,2.57147125,144.56,144.52,1.72857044]
[1768484240134,12.62,144.59,144.52,8.64770604]
[1768484240354,12.62,144.59,144.53,6.91887173]
[1768484240553,2.57147125,144.56,144.53,6.91887173]
[1768484240755,4.1979521,144.56,144.53,6.91887173]
[1768484241454,4.1979521,144.56,144.53,8.5341205]
[1768484241861,1.62648085,144.56,144.53,8.5341205]
[1768484244458,1.62648085,144.56,144.53,1.61524877]
[1768484244459,4.1979521,144.56,144.53,1.61524877]
[1768484244638,4.1979521,144.56,144.53,8.53419096]
[1768484246363,1.62648085,144.56,144.53,8.53419096]
[1768484246565,4.1979521,144.56,144.53,8.53419096]
[1768484247758,1.62648085,144.56,144.53,8.53419096]
[1768484249256,4.1979521,144.56,144.53,8.53419096]
[1768484249561,1.62648085,144.56,144.53,8.53419096]
[1768484253670,1.73752339,144.58,144.54,1.69735961]
[1768484253857,4.30899464,144.58,144.54,1.69735961]
[1768484254874,1.73752339,144.57,144.54,1.69735961]
[1768484255362,1.73752339,144.56,144.54,6.91810655]
[1768484256363,1.67752332,144.56,144.54,6.91810655]
[1768484256948,4.24899457,144.56,144.54,6.91810655]
[1768484257785,1.67752332,144.56,144.54,6.91810655]
[1768484257973,4.24899457,144.56,144.54,6.91810655]
[1768484258471,1.67752332,144.56,144.54,6.91810655]
[1768484258973,1.73752339,144.58,144.54,8.61546616]
[1768484259152,1.73752339,144.57,144.54,8.61546616]
[1768484259352,4.30899464,144.57,144.54,8.61546616]
[1768484259671,4.30899464,144.57,144.54,1.69735961]
[1768484260559,4.30899464,144.57,144.54,6.91846852]
[1768484260560,1.73752339,144.56,144.54,6.91846852]
[1768484260761,1.73752339,144.55,144.52,1.69735961]
[1768484260959,1.73752339,144.55,144.52,8.61635176]
[1768484262055,4.30899464,144.56,144.52,8.61635176]
[1768484262255,4.30899464,144.57,144.53,1.69735961]
[1768484262456,17.28862365,144.61,144.53,1.69735961]
[1768484262457,4.30899464,144.58,144.53,1.69735961]
[1768484262790,4.30899464,144.59,144.54,1.69735961]
[1768484263155,4.30899464,144.58,144.54,1.69735961]
[1768484263579,4.30899464,144.58,144.55,6.91802144]
[1768484264660,1.73752339,144.58,144.55,8.61538105]
[1768484267582,4.30899464,144.58,144.55,8.61538105]
[1768484269483,1.73752339,144.58,144.55,8.61538105]
[1768484270297,14.35752339,144.6,144.56,1.69735961]
[1768484270468,1.73752339,144.6,144.56,1.69735961]
[1768484270665,1.73752339,144.59,144.56,1.69735961]
[1768484272697,4.30899464,144.59,144.56,1.69735961]
[1768484272875,4.25128965,144.58,144.54,8.58940059]
[1768484273786,1.6798184,144.58,144.54,8.58940059]
[1768484273991,4.25128965,144.58,144.55,1.67104408]
[1768484274692,1.6798184,144.58,144.55,1.67104408]
[1768484277186,1.6798184,144.58,144.55,8.58901563]
[1768484281809,1.6798184,144.58,144.54,8.58939443]
[1768484282010,1.6798184,144.57,144.54,8.58939443]
[1768484287515,1.6798184,144.58,144.55,8.58902342]
[1768484287696,6.91616331,144.59,144.56,1.67104408]
[1768484287897,1.6798184,144.58,144.55,8.58902342]
[1768484294618,1.6798184,144.57,144.52,1.81320565]
[1768484294817,1.6798184,144.54,144.51,1.67104408]
[1768484295004,1.6798184,144.54,144.51,4.24251533]
[1768484295200,6.91684682,144.58,144.52,4.24251533]
[1768484295518,2.57147125,144.58,144.53,4.24251533]
[1768484296619,12.62,144.59,144.5,85.86361485]
[1768484296620,12.62,144.59,144.55,1.67104408]
[1768484297420,1.6798184,144.58,144.54,9.48997131]
[1768484297611,1.6798184,144.58,144.54,11.16101539]
[1768484297817,1.6798184,144.58,144.55,1.67104408]
[1768484298129,1.6798184,144.6,144.55,1.67104408]
[1768484298332,4.25128965,144.6,144.55,1.67104408]
[1768484298506,4.25128965,144.6,144.56,8.58858696]
[1768484299322,1.6798184,144.6,144.56,8.58858696]
[1768484299824,11.16654579,144.61,144.57,1.67104408]
[1768484300022,1.6798184,144.61,144.57,1.67104408]
[1768484300226,1.6798184,144.61,144.56,9.48901413]
[1768484300227,1.6798184,144.61,144.58,1.67104408]
[1768484300420,1.6798184,144.61,144.57,1.67104408]
[1768484301326,1.6798184,144.61,144.57,5.68673403]
[1768484301512,1.6798184,144.61,144.57,12.6037646]
[1768484303117,8.59500949,144.61,144.57,12.6037646]
[1768484304625,8.59500949,144.61,144.57,8.58807465]
[1768484304826,8.59500949,144.61,144.57,12.6037646]
[1768484305035,1.6798184,144.61,144.58,4.01568995]
[1768484305610,8.59518645,144.61,144.57,5.68673403]
[1768484305811,1.61773016,144.6,144.57,5.68673403]
[1768484306623,1.61773016,144.6,144.57,4.01568995]
[1768484306818,1.61773016,144.6,144.56,12.56537836]
[1768484307406,5.63342011,144.6,144.56,8.54968841]
[1768484307730,1.61773016,144.59,144.56,8.54968841]
[1768484308713,5.63342011,144.6,144.56,8.54968841]
[1768484309013,1.61773016,144.6,144.56,8.54968841]
[1768484309212,1.61773016,144.6,144.57,8.54927672]
[1768484313432,1.61773016,144.61,144.58,1.63227826]
[1768484313615,5.63342011,144.61,144.58,1.63227826]
[1768484315235,12.5482927,144.62,144.58,1.63227826]
[1768484315432,1.61773016,144.61,144.58,1.63227826]
[1768484315818,1.61773016,144.61,144.57,8.54927672]
[1768484317439,1.61773016,144.61,144.58,1.63227826]
[1768484317738,12.5482927,144.62,144.59,1.63227826]
[1768484318840,1.61773016,144.63,144.6,1.63227826]
[1768484319141,1.61773016,144.63,144.6,5.64796821]
[1768484319314,1.61773016,144.63,144.6,1.63227826]
[1768484320021,1.61773016,144.63,144.6,8.54762509]
[1768484320227,1.61773016,144.64,144.6,8.54762509]
[1768484320620,1.61773016,144.64,144.6,12.56331504]
[1768484321745,1.61773016,144.65,144.61,1.63227826]
[1768484322310,1.61773016,144.65,144.61,5.64796821]
[1768484322526,1.61773016,144.65,144.61,1.63227826]
[1768484322849,1.61773016,144.65,144.61,5.64796821]
[1768484323443,18.35342011,144.66,144.62,1.63227826]
[1768484324644,18.35342011,144.66,144.62,8.54692024]
[1768484324845,12.72,144.66,144.62,8.54692024]
[1768484325019,14.33773016,144.66,144.63,1.63227826]
[1768484325362,14.33773016,144.66,144.62,8.54692024]
[1768484327058,14.33773016,144.66,144.62,12.56261019]
[1768484327224,14.33773016,144.66,144.62,8.54692024]
[1768484327651,14.33773016,144.66,144.63,1.63227826]
[1768484328028,1.71773016,144.66,144.63,1.63227826]
[1768484328441,1.71773016,144.66,144.63,8.54645384]
[1768484331064,0.1,144.66,144.64,1.49154553]
[1768484332138,0.1,144.66,144.64,8.40514491]
[1768484337067,0.1,144.66,144.63,8.40574037]
[1768484337454,1.59874239,144.66,144.63,8.40574037]
[1768484337652,5.61443234,144.66,144.63,8.40574037]
[1768484337889,1.59874239,144.66,144.63,8.40574037]
[1768484338166,0.1,144.66,144.64,1.49154553]
[1768484339778,0.1,144.66,144.64,8.4051209]
[1768484340163,0.1,144.66,144.64,6.91357537]
[1768484341071,0.1,144.66,144.64,8.4051209]
[1768484343555,0.1,144.66,144.64,8.40525371]
[1768484343873,1.49874239,144.65,144.57,12.41909182]
[1768484344082,5.51443234,144.62,144.59,6.91588189]
[1768484344885,5.51443234,144.61,144.58,8.40793689]
[1768484345069,4.01568995,144.61,144.58,8.40793689]
[1768484345673,3.95568995,144.61,144.58,8.40793689]
[1768484346358,4.01568995,144.59,144.56,1.49154553]
[1768484346965,5.44386049,144.58,144.54,1.49154553]
[1768484347286,12.6,144.61,144.53,8.4102487]
[1768484347287,5.44386049,144.56,144.53,8.4102487]
[1768484348166,1.4220862,144.57,144.53,8.4102487]
[1768484348366,14.0220862,144.6,144.54,1.49154553]
[1768484348578,4.01568995,144.58,144.54,1.49154553]
[1768484349380,3.95568988,144.58,144.55,1.49154553]
[1768484349585,5.43176169,144.59,144.55,1.49154553]
[1768484350369,4.01568995,144.58,144.55,1.49154553]
[1768484350565,3.95568994,144.56,144.55,1.49154553]
[1768484350773,4.01568995,144.57,144.55,1.49154553]
[1768484350961,4.01568995,144.58,144.55,1.49154553]
[1768484351166,14.0044794,144.6,144.55,1.49154553]
[1768484351385,4.01568995,144.59,144.55,1.49154553]
[1768484351573,4.01568995,144.59,144.56,8.40908841]
[1768484352191,14.0044794,144.6,144.56,8.40908841]
[1768484352366,4.01568995,144.59,144.56,8.40908841]
[1768484354064,4.01568995,144.58,144.56,1.49154553]
[1768484354287,18.00361466,144.6,144.56,1.49154553]
[1768484354587,4.01568995,144.59,144.56,1.49154553]
[1768484355877,4.01568995,144.58,144.56,1.49154553]
[1768484356492,4.01568995,144.58,144.55,1.49154553]
[1768484357177,4.01568995,144.58,144.56,1.49154553]
[1768484361391,2.57114663,144.58,144.56,1.49154553]
[1768484361573,10.79915318,144.58,144.54,8.22361293]
[1768484361779,2.57114663,144.57,144.54,8.22361293]
[1768484361980,2.57114663,144.55,144.52,8.22445047]
[1768484362302,3.88249628,144.56,144.53,8.22413651]
[1768484363607,3.88249628,144.55,144.52,6.91928615]
[1768484363785,3.88249628,144.55,144.52,8.22460615]
[1768484364173,2.57114663,144.55,144.52,8.22460615]
[1768484365288,1.32715624,144.56,144.52,8.22460615]
[1768484366201,1.32715624,144.56,144.53,1.33595632]
[1768484367919,1.32715624,144.56,144.53,8.25480778]
[1768484368504,1.32715624,144.56,144.53,10.82595441]
[1768484372013,1.29107991,144.57,144.54,1.33595632]
[1768484372203,1.29107991,144.57,144.54,3.90710295]
[1768484372900,1.29107991,144.57,144.54,1.33595632]
[1768484373210,1.29107991,144.57,144.54,3.90710295]
[1768484377816,1.29107991,144.57,144.54,1.33595632]
[1768484378194,1.29107991,144.57,144.53,10.82595441]
[1768484379111,1.29107991,144.57,144.54,1.33595632]
[1768484379892,8.208347,144.57,144.53,10.82604468]
[1768484384608,8.208347,144.57,144.53,8.25489805]
[1768484384806,8.208347,144.57,144.53,10.82604468]
[1768484386131,8.208347,144.57,144.54,1.33595632]
[1768484387519,1.22820031,144.56,144.53,10.82604468]
[1768484390223,1.22112644,144.57,144.54,1.33595632]
[1768484390516,6.91658597,144.58,144.48,1.33595632]
[1768484390517,1.21765033,144.54,144.48,1.33595632]
[1768484390716,1.21765033,144.54,144.49,10.82774254]
[1768484390916,1.21765033,144.54,144.5,1.29717767]
[1768484391101,1.21765033,144.54,144.5,3.8683243]
[1768484392522,8.13632266,144.54,144.5,3.8683243]
[1768484393922,8.13632266,144.54,144.5,1.29717767]
[1768484394128,8.13632266,144.54,144.5,10.78866497]
[1768484394600,8.13632266,144.54,144.5,3.8683243]
[1768484395043,8.07632263,144.54,144.5,3.8683243]
[1768484396217,6.91867233,144.54,144.5,1.29717767]
[1768484396540,6.85867232,144.54,144.5,3.8683243]
[1768484397047,7.99308246,144.54,144.5,3.8683243]
[1768484398500,1.13124089,144.53,144.5,3.8683243]
[1768484398699,1.07124089,144.53,144.5,3.8683243]
[1768484399327,1.07124089,144.53,144.5,1.29717767]
[1768484400202,7.99035618,144.53,144.5,1.29717767]
[1768484401209,1.07124089,144.53,144.51,2.57114663]
[1768484401408,1.01124088,144.53,144.51,2.57114663]
[1768484402127,7.87023925,144.53,144.5,1.29717767]
[1768484402431,12.62,144.52,144.47,3.8683243]
[1768484403128,12.62,144.52,144.48,3.8683243]
[1768484403930,0.93356835,144.51,144.48,3.8683243]
[1768484404110,0.93356835,144.5,144.48,2.57114663]
[1768484404316,6.91999122,144.51,144.47,3.8683243]
[1768484404518,19.53966209,144.52,144.48,1.29717767]
[1768484404833,19.53966209,144.52,144.49,1.29717767]
[1768484405206,6.91909207,144.53,144.5,3.8683243]
[1768484405424,19.53909207,144.53,144.5,3.8683243]
[1768484405811,19.53909207,144.53,144.5,1.29717767]
[1768484406010,12.62,144.53,144.51,2.57114663]
[1768484406522,12.62,144.53,144.5,3.8683243]
[1768484407032,12.62,144.53,144.5,10.78866278]
[1768484407240,7.48269923,144.53,144.52,3.8683243]
[1768484407555,7.48269923,144.53,144.51,10.78804833]
[1768484407832,0.86596164,144.54,144.51,10.78804833]
[1768484408409,0.86596164,144.54,144.52,2.57114663]
[1768484408834,0.86130387,144.57,144.54,1.29717767]
[1768484409042,1.30030388,144.6,144.56,3.8683243]
[1768484409340,0.43900001,144.6,144.58,2.57114663]
[1768484411922,0.43900001,144.6,144.58,1.29717767]
[1768484412235,0.43900001,144.6,144.58,3.8683243]
[1768484412834,0.43900001,144.6,144.59,1.29717767]
[1768484413037,13.47000677,144.63,144.59,3.8683243]
[1768484413254,13.47000677,144.63,144.6,3.8683243]
[1768484413930,20.38426586,144.63,144.59,3.8683243]
[1768484414341,0.84726312,144.62,144.59,1.29717767]
[1768484414727,0.84726312,144.62,144.59,3.8683243]
[1768484415142,7.76201672,144.62,144.59,3.8683243]
[1768484416416,0.84187001,144.61,144.57,1.29717767]
[1768484416624,7.75397342,144.62,144.59,2.57114663]
[1768484417831,20.37089932,144.63,144.6,2.57114663]
[1768484418916,20.37089932,144.63,144.59,3.8683243]
[1768484421441,20.37089932,144.63,144.59,5.31202468]
[1768484421647,20.37089932,144.63,144.52,96.09554648]
[1768484421648,0.82394585,144.59,144.53,1.20642181]
[1768484421824,4.01484701,144.56,144.53,1.20642181]
[1768484422026,4.83879286,144.57,144.53,1.20642181]
[1768484422427,12.62,144.58,144.54,1.20642181]
[1768484422980,16.63484701,144.58,144.54,1.20642181]
[1768484423145,23.55147523,144.58,144.54,1.20642181]
[1768484427040,10.9305528,144.6,144.55,1.21233831]
[1768484427237,11.74024752,144.6,144.55,1.21233831]
[1768484427660,4.01484701,144.59,144.55,8.13030119]
[1768484427969,4.82226111,144.59,144.55,1.21233831]
[1768484428141,0.8074141,144.59,144.55,1.21233831]
[1768484428343,4.82226111,144.59,144.55,1.21233831]
[1768484429852,7.72360225,144.59,144.55,8.1303592]
[1768484430053,11.73844926,144.59,144.56,1.21233831]
[1768484431268,7.72360225,144.59,144.56,1.21233831]
[1768484431470,11.73844926,144.59,144.56,1.21233831]
[1768484431852,7.72360225,144.59,144.56,1.21233831]
[1768484432366,11.73844926,144.59,144.56,1.21233831]
[1768484433369,20.33175163,144.61,144.57,1.21233831]
[1768484433537,4.01484701,144.6,144.57,1.21233831]
[1768484434267,19.53535368,144.61,144.57,1.21233831]
[1768484434463,23.55020069,144.61,144.57,1.21233831]
[1768484436468,16.63484701,144.61,144.58,1.21233831]
[1768484436769,10.92959954,144.62,144.58,1.21233831]
[1768484437943,11.71559963,144.62,144.58,1.21233831]
[1768484438774,4.01484701,144.61,144.58,1.21233831]
[1768484439072,11.71559963,144.62,144.58,1.21233831]
[1768484440670,4.01484701,144.61,144.58,1.21233831]
[1768484442160,11.71559963,144.62,144.58,1.21233831]
[1768484446180,7.70075262,144.62,144.58,1.21233831]
[1768484446354,11.71559963,144.62,144.58,1.21233831]
[1768484450260,0.76336426,144.61,144.58,1.21233831]
[1768484450558,4.77821127,144.61,144.58,1.21233831]
[1768484451161,4.77473441,144.59,144.57,0.26001933]
[1768484451356,0.7598874,144.59,144.57,0.26001933]
[1768484451569,4.77302587,144.6,144.57,0.26001933]